bitfinex/quotes_ETHUSD_20250314
["timestamp","ask_amount","ask_price","bid_price","bid_amount"]
[1741976481670,11.39468011,1938.0,1937.6,5.16102]
[1741976482231,16.55482011,1938.0,1937.6,5.16102]
[1741976482462,11.39468011,1938.0,1937.6,5.16102]
[1741976482643,5.16037,1937.9,1937.5,6.543576]
[1741976482839,5.16037,1937.9,1937.5,0.7876]
[1741976483069,5.16061,1937.8,1937.4,5.16144]
[1741976483270,5.16061,1937.8,1937.4,10.32283]
[1741976483457,5.16061,1937.8,1937.4,5.16139]
[1741976483653,5.81037,1937.9,1937.5,5.16115]
[1741976483969,5.81037,1937.9,1937.5,11.14631]
[1741976484150,0.65,1937.9,1937.7,5.16068]
[1741976484468,16.55483011,1938.0,1937.6,5.16093]
[1741976484675,5.16024,1937.9,1937.5,7.099891]
[1741976484980,11.39468011,1938.0,1937.5,7.099901]
[1741976485264,8.15999,1938.0,1937.5,1.938631]
[1741976485457,8.15999,1938.0,1937.6,10.32168]
[1741976485653,11.39454011,1938.0,1937.6,5.16084]
[1741976485969,5.16033,1937.9,1937.5,5.98523]
[1741976486569,11.39454011,1938.0,1937.6,5.16092]
[1741976487073,16.55474011,1938.0,1937.6,5.16092]
[1741976487471,16.55474011,1938.0,1937.5,5.98512]
[1741976487472,3.0,1937.7,1937.3,0.7994]
[1741976487671,3.23455011,1937.5,1936.9,5.96216]
[1741976487857,3.23455011,1937.5,1936.7,0.7994]
[1741976487858,5.16255,1937.1,1936.7,0.7994]
[1741976488062,5.16271,1937.0,1936.7,0.7994]
[1741976488371,5.16255,1937.1,1936.7,7.1786768]
[1741976488551,8.16217,1937.2,1936.8,5.16312]
[1741976488747,3.0,1937.2,1937.0,5.16252]
[1741976488947,5.1608,1937.7,1937.0,5.16252]
[1741976488948,1.68210984,1937.6,1937.0,0.7994]
[1741976489160,8.8112,1937.6,1937.2,5.16202]
[1741976489352,8.8112,1937.6,1937.2,10.324]
[1741976489565,8.8112,1937.6,1937.2,11.02919883]
[1741976490350,3.0,1937.6,1937.3,5.1618]
[1741976490555,3.0,1937.7,1937.3,5.93769]
[1741976490868,3.0,1937.7,1937.4,5.16145]
[1741976491078,5.16107,1937.6,1937.3,5.93776]
[1741976491451,5.16107,1937.6,1937.3,5.16176]
[1741976491651,5.16107,1937.6,1937.2,5.86715883]
[1741976491852,5.16107,1937.6,1937.3,0.58671588]
[1741976492048,11.39537011,1937.7,1937.3,5.74852588]
[1741976492254,8.16082,1937.7,1937.3,5.74852588]
[1741976493678,5.16113,1937.6,1937.2,5.16207]
[1741976493974,5.16113,1937.6,1937.2,10.32399]
[1741976494796,5.16113,1937.6,1937.2,10.32386]
[1741976494976,5.16113,1937.6,1937.1,5.95993]
[1741976495179,5.16113,1937.6,1936.3,5.56123766]
[1741976495180,5.81175,1937.4,1936.9,5.16286]
[1741976495492,5.16221,1937.2,1936.8,10.3261]
[1741976495859,5.16246,1937.1,1936.7,5.96587]
[1741976496183,5.16269,1937.0,1936.7,0.8026]
[1741976496388,10.32552,1937.0,1936.7,0.8026]
[1741976496590,5.16301,1936.9,1936.5,11.09824]
[1741976496797,6.260242,1937.0,1936.5,11.09824]
[1741976496798,1.097552,1937.0,1936.5,0.7705]
[1741976496990,5.81353,1936.7,1936.4,0.38604333]
[1741976497294,5.16388,1936.6,1936.4,0.38604333]
[1741976497598,5.16395,1936.5,1936.4,0.38604333]
[1741976498355,8.87085019,1936.5,1936.4,0.38604333]
[1741976498584,8.87085019,1936.5,1935.8,5.94509]
[1741976498585,5.16501,1936.2,1935.8,5.94509]
[1741976498893,5.165,1936.2,1935.8,5.16579]
[1741976499393,5.16504,1936.1,1935.8,5.16579]
[1741976499560,5.16559,1935.9,1935.5,5.16646]
[1741976499763,8.16536,1936.0,1935.6,5.16635]
[1741976500059,5.1656,1935.9,1935.5,5.16646]
[1741976500397,5.16597,1935.8,1935.4,5.99156]
[1741976500579,5.16618,1935.7,1935.2,0.824]
[1741976500779,5.16646,1935.6,1935.2,5.9912]
[1741976501091,5.16646,1935.6,1935.2,5.16735]
[1741976501397,5.16646,1935.6,1935.2,5.16726]
[1741976501555,5.16646,1935.6,1935.2,10.33449]
[1741976501765,5.16646,1935.6,1935.2,11.367969]
[1741976501966,5.16646,1935.6,1935.2,5.16723]
[1741976502300,5.1661,1935.7,1935.3,5.16713]
[1741976502601,3.0,1935.7,1935.0,5.98371]
[1741976502768,10.26484,1935.8,1935.4,5.16678]
[1741976503787,15.43087,1935.8,1935.4,5.16678]
[1741976503993,10.26484,1935.8,1935.4,5.16678]
[1741976504586,5.099,1935.8,1935.5,5.1666]
[1741976504792,5.099,1935.8,1935.6,5.16617]
[1741976504987,3.65,1935.9,1935.7,5.16608]
[1741976505191,3.0,1935.9,1935.7,5.16608]
[1741976505394,3.0,1935.9,1935.8,5.16582]
[1741976505700,5.1,1936.1,1935.8,5.16582]
[1741976506082,5.1,1936.1,1935.8,1.033188]
[1741976506285,8.1,1936.1,1936.0,5.16528]
[1741976506489,3.0,1936.1,1936.0,5.16528]
[1741976506898,11.29462982,1936.4,1936.0,10.33043]
[1741976507105,3.0,1936.3,1936.0,5.16515]
[1741976507307,11.29462982,1936.4,1936.0,5.16513]
[1741976507606,3.0,1936.3,1936.0,5.16513]
[1741976508013,3.0,1936.3,1936.0,10.33027]
[1741976510688,3.0,1936.6,1936.4,5.16398]
[1741976511210,3.0,1936.6,1936.3,5.16438]
[1741976511394,5.101,1936.7,1936.5,5.1638]
[1741976512099,3.65,1936.8,1936.5,5.1638]
[1741976512808,3.65,1936.8,1936.6,5.16359]
[1741976513050,3.65,1936.8,1936.5,5.16378]
[1741976516410,3.65,1936.8,1936.5,10.32755]
[1741976516824,3.65,1936.8,1936.5,5.16377]
[1741976516984,3.65,1936.8,1936.5,10.32756]
[1741976517312,8.81321,1936.8,1936.5,5.16377]
[1741976518225,3.65,1937.1,1936.8,5.16307]
[1741976518433,5.1,1937.0,1936.8,5.16307]
[1741976518731,8.1,1937.0,1936.8,5.16307]
[1741976519284,1.03444169,1937.2,1936.6,0.7943]
[1741976519611,3.0,1937.0,1936.6,0.7943]
[1741976519819,3.0,1937.0,1936.7,5.16317]
[1741976520120,3.0,1937.0,1936.7,10.3264]
[1741976520416,5.16292,1936.9,1936.6,5.16356]
[1741976520616,8.16275,1937.0,1936.6,10.32706]
[1741976521287,8.16275,1937.0,1936.7,5.16341]
[1741976521712,13.32557,1937.0,1936.6,5.1635]
[1741976522017,8.16275,1937.0,1936.6,10.32705]
[1741976522220,8.16275,1937.0,1936.7,5.16339]
[1741976522590,8.16275,1937.0,1936.6,5.1635]
[1741976522802,8.81275,1937.0,1936.6,10.32705]
[1741976523016,8.81275,1937.0,1936.7,5.16342]
[1741976523985,13.97558,1937.0,1936.6,5.1635]
[1741976524211,13.56047482,1936.9,1936.5,5.16394]
[1741976524515,3.0,1936.8,1936.5,5.16386]
[1741976524885,3.0,1936.8,1936.4,5.94298]
[1741976524886,5.16342,1936.7,1936.4,5.16418]
[1741976525818,3.0,1936.8,1936.5,5.16393]
[1741976526189,8.16324,1936.8,1936.4,10.32822]
[1741976526387,10.33560848,1936.8,1936.4,10.32811]
[1741976526615,10.33560848,1936.8,1936.5,5.16392]
[1741976526818,10.33560848,1936.8,1936.4,5.16405]
[1741976526819,5.16356,1936.7,1936.4,5.16405]
[1741976527187,3.0,1936.8,1936.3,0.05163944]
[1741976527411,3.0,1936.8,1936.5,5.16382]
[1741976527618,9.81919648,1936.8,1936.5,5.16382]
[1741976528720,3.0,1936.8,1936.6,5.16357]
[1741976528921,8.16317,1936.8,1936.5,5.16382]
[1741976529101,8.16317,1936.8,1936.4,5.16409]
[1741976529486,8.16317,1936.8,1936.4,10.32814]
[1741976529691,3.0,1936.8,1936.5,5.16383]
[1741976530224,5.37099848,1937.0,1936.6,5.95948]
[1741976530389,13.2617,1937.0,1936.7,5.1633]
[1741976530788,13.2617,1937.0,1936.6,5.95938]
[1741976530996,8.099,1937.0,1936.6,0.7958]
[1741976531201,5.16309,1936.9,1936.5,5.16371]
[1741976531403,5.16309,1936.9,1936.6,5.16363]
[1741976531605,10.32614,1936.9,1936.5,5.16371]
[1741976532501,5.16342,1936.7,1936.4,5.95761]
[1741976532721,5.16377,1936.6,1936.2,5.99047]
[1741976533040,10.32763,1936.6,1936.2,5.16457]
[1741976533201,5.16396,1936.5,1936.1,5.55025359]
[1741976533401,3.65,1936.4,1936.1,5.55025359]
[1741976533601,5.16475,1936.2,1936.1,0.38526359]
[1741976533803,5.16475,1936.2,1935.8,5.55084359]
[1741976534009,5.16475,1936.2,1935.8,10.71654359]
[1741976534215,5.16475,1936.2,1935.8,5.55084359]
[1741976534499,5.16475,1936.2,1935.8,10.71645359]
[1741976534811,5.16475,1936.2,1935.9,5.16554]
[1741976535006,3.23440482,1936.3,1936.0,5.16528]
[1741976535212,8.749,1936.4,1935.9,5.16551]
[1741976535407,8.749,1936.4,1935.8,5.16579]
[1741976535408,5.16489,1936.2,1935.8,5.16579]
[1741976535735,5.16489,1936.2,1935.8,10.33144]
[1741976535931,5.16489,1936.2,1935.6,0.7905]
[1741976535932,3.65,1936.0,1935.7,5.16606]
[1741976536113,8.81546,1936.0,1935.6,11.12301]
[1741976536636,8.81546,1936.0,1935.7,5.16606]
[1741976537001,3.65,1936.0,1935.7,5.16606]
[1741976537197,3.65,1936.0,1935.7,10.33191]
[1741976537403,3.65,1936.0,1935.7,5.16594]
[1741976537604,5.16594,1935.8,1935.4,1.18004847]
[1741976537799,5.16594,1935.8,1935.5,5.16651]
[1741976539009,5.16594,1935.8,1935.4,5.16663]
[1741976539219,0.65,1935.6,1935.2,5.1674]
[1741976539420,5.16665,1935.5,1935.2,5.1674]
[1741976539613,5.748315,1935.5,1935.0,11.12926]
[1741976539834,5.16699,1935.4,1935.0,11.12926]
[1741976540023,8.98271982,1935.5,1934.9,5.1682]
[1741976540024,5.16718,1935.3,1934.9,5.1682]
[1741976540225,3.65,1935.2,1934.8,0.7935]
[1741976540402,3.0,1935.2,1934.8,0.7935]
[1741976540606,0.65,1935.4,1935.1,5.16766]
[1741976540832,10.13526298,1935.4,1935.0,5.1679]
[1741976541206,3.0,1935.2,1935.0,5.1679]
[1741976541407,3.0,1935.2,1934.8,5.96195]
[1741976541717,8.16753,1935.2,1934.9,5.16819]
[1741976541916,3.0,1935.2,1934.9,10.33625]
[1741976542137,3.0,1935.2,1935.0,5.16784]
[1741976542342,3.0,1935.2,1935.0,10.33566]
[1741976542508,3.0,1935.2,1935.0,5.16782]
[1741976542707,3.65,1935.4,1935.0,5.16779]
[1741976542907,8.81699,1935.4,1935.0,5.16786]
[1741976543332,8.81699,1935.4,1935.0,10.33567]
[1741976543535,3.65,1935.4,1935.2,5.16731]
[1741976544351,0.65,1935.6,1935.3,5.16693]
[1741976544529,5.81658,1935.6,1935.1,5.16743]
[1741976544729,5.16676,1935.5,1935.1,5.16743]
[1741976545033,5.16676,1935.5,1935.1,10.33498]
[1741976545233,5.16676,1935.5,1935.2,5.1674]
[1741976545607,5.8165,1935.6,1935.2,5.1674]
[1741976546032,10.98304,1935.6,1935.2,5.1674]
[1741976546435,5.8165,1935.6,1935.3,5.16713]
[1741976546619,0.65,1935.6,1935.3,5.16713]
[1741976547011,3.23440482,1935.7,1935.5,5.16662]
[1741976547209,8.33540482,1935.7,1935.4,5.16688]
[1741976547412,5.101,1935.7,1935.2,5.16736]
[1741976547753,5.101,1935.7,1935.6,5.16635]
[1741976548066,0.65,1936.0,1935.4,5.93827]
[1741976548258,0.65,1936.0,1935.7,5.166]
[1741976548556,6.1156031,1936.1,1935.9,5.16539]
[1741976548755,8.81484,1936.2,1935.9,5.16539]
[1741976548913,16.00112248,1936.2,1935.8,5.16571]
[1741976549115,8.88853778,1936.2,1935.8,5.16567]
[1741976549955,3.0,1936.1,1935.8,5.16566]
[1741976550315,8.1651,1936.1,1935.8,5.16566]
[1741976551617,16.56471482,1936.1,1935.7,5.16606]
[1741976551818,5.1653,1936.0,1935.7,5.16606]
[1741976552041,11.39950482,1936.1,1935.7,5.16606]
[1741976552211,11.39950482,1936.1,1935.8,5.16572]
[1741976552212,3.0,1936.1,1935.8,5.16572]
[1741976552411,8.16512,1936.1,1935.7,5.16604]
[1741976552656,8.16512,1936.1,1935.7,5.16592]
[1741976552856,5.16536,1936.0,1935.7,5.16592]
[1741976553212,5.16555,1935.9,1935.6,5.16634]
[1741976553412,5.16555,1935.9,1935.5,10.33307]
[1741976553724,0.65,1935.8,1935.5,10.33307]
[1741976553925,5.81582,1935.8,1935.5,5.16649]
[1741976554120,8.40064482,1935.7,1935.2,5.95448]
[1741976554343,6.00653448,1935.6,1935.2,10.33468]
[1741976554930,6.00653448,1935.6,1935.3,5.16707]
[1741976555130,6.00653448,1935.6,1935.2,10.3346]
[1741976555630,6.00653448,1935.6,1935.2,10.33464]
[1741976556263,11.17307448,1935.6,1935.2,5.1673]
[1741976556561,6.00653448,1935.6,1935.2,10.33459]
[1741976556756,11.17309448,1935.6,1935.2,5.16729]
[1741976557060,6.00653448,1935.6,1935.3,5.16704]
[1741976557260,6.00649448,1935.6,1935.3,5.16704]
[1741976557663,10.78008391,1935.8,1935.0,1.820667]
[1741976557839,0.65,1936.1,1935.6,0.8242]
[1741976558032,0.65,1936.1,1935.8,5.16579]
[1741976558232,5.8152,1936.1,1935.7,5.16606]
[1741976558439,0.65,1936.1,1935.8,5.16566]
[1741976558657,3.65,1936.1,1935.8,10.33134]
[1741976558859,3.65,1936.1,1935.8,5.16566]
[1741976559763,10.26459,1936.7,1936.3,5.16436]
[1741976560067,3.0,1936.6,1936.1,5.16476]
[1741976560250,3.0,1936.4,1936.1,10.32965]
[1741976560563,5.16372,1936.6,1936.1,5.16476]
[1741976560765,3.0,1936.4,1936.1,5.16476]
[1741976560931,3.0,1936.4,1936.0,5.92657]
[1741976560932,3.0,1936.3,1935.9,5.1655]
[1741976561138,0.3,1936.2,1935.9,5.1655]
[1741976561332,0.3,1936.2,1935.8,5.94192]
[1741976561578,5.46487,1936.2,1935.8,5.16564]
[1741976561734,5.46487,1936.2,1935.9,5.1655]
[1741976561935,8.101,1936.3,1936.0,5.16528]
[1741976563046,8.101,1936.3,1935.9,5.16553]
[1741976563258,5.16478,1936.2,1935.9,5.16553]
[1741976563756,3.0,1936.0,1935.7,5.16584]
[1741976564075,3.0,1936.0,1935.7,10.33178]
[1741976564660,3.0,1936.2,1935.9,5.16545]
[1741976564847,4.326552,1936.2,1935.9,5.16545]
[1741976565649,4.326552,1936.2,1935.9,10.3309]
[1741976565848,10.91429,1936.4,1936.1,5.16492]
[1741976566284,3.0,1936.3,1936.1,5.16492]
[1741976566865,3.0,1936.3,1936.0,5.16512]
[1741976568039,8.16462,1936.3,1935.9,5.16552]
[1741976568240,5.16475,1936.2,1935.9,5.16552]
[1741976568441,9.556082,1936.3,1935.9,5.16541]
[1741976568641,4.391462,1936.3,1936.0,5.16525]
[1741976568842,9.556122,1936.3,1935.9,5.16541]
[1741976569140,5.16484,1936.2,1935.9,5.16541]
[1741976569897,9.556122,1936.3,1935.9,10.33078]
[1741976570063,4.391462,1936.3,1936.0,5.16527]
[1741976570270,3.0,1936.3,1936.1,5.16502]
[1741976570564,8.1645,1936.3,1936.0,5.16517]
[1741976571688,3.0,1936.3,1936.0,10.33029]
[1741976571866,3.0,1936.3,1936.1,5.16501]
[1741976572265,3.0,1936.3,1936.0,5.95012]
[1741976572668,3.0,1936.3,1936.1,5.16501]
[1741976573657,3.0,1936.3,1936.0,5.95012]
[1741976573858,4.907861,1936.3,1936.0,5.95012]
[1741976574058,10.072411,1936.3,1936.0,5.16512]
[1741976574398,5.1649,1936.2,1935.8,5.9198]
[1741976574563,5.1649,1936.2,1935.8,5.91968]
[1741976574884,5.1649,1936.2,1935.9,5.16546]
[1741976575087,3.0,1936.1,1935.9,5.16546]
[1741976577098,8.16512,1936.1,1935.7,5.16594]
[1741976577294,13.33031,1936.1,1935.7,5.16594]
[1741976577499,13.3303,1936.1,1935.7,5.16594]
[1741976577709,13.9803,1936.1,1935.7,5.16594]
[1741976577876,15.53070281,1936.1,1935.7,5.16594]
[1741976578068,10.36552281,1936.1,1935.7,10.33191]
[1741976578270,15.53070281,1936.1,1935.7,5.16594]
[1741976578596,5.16564,1935.9,1935.6,5.16631]
[1741976578812,3.0,1935.9,1935.6,5.16617]
[1741976579272,3.0,1935.9,1935.7,5.16608]
[1741976580403,3.0,1935.9,1935.6,5.16617]
[1741976580565,8.16565,1935.9,1935.5,10.33313]
[1741976580770,13.33136,1935.9,1935.5,10.33313]
[1741976581402,8.16565,1935.9,1935.5,5.16652]
[1741976581602,3.0,1935.9,1935.6,5.1662]
[1741976581782,3.0,1935.9,1935.6,10.33238]
[1741976582173,3.0,1935.9,1935.7,5.16595]
[1741976583010,0.65,1935.8,1935.4,0.7908]
[1741976583170,5.16702,1935.4,1935.1,0.386709]
[1741976583368,5.16725,1935.3,1934.9,5.16797]
[1741976583574,5.16725,1935.3,1934.9,10.33605]
[1741976583780,3.0,1935.2,1934.9,5.16797]
[1741976583984,3.0,1935.2,1934.9,10.33608]
[1741976584197,8.16692,1935.4,1935.0,5.16771]
[1741976584404,8.16692,1935.4,1935.1,5.16755]
[1741976584405,3.0,1935.4,1935.1,5.16755]
[1741976584606,3.0,1935.4,1935.2,5.16733]
[1741976584806,3.0,1935.4,1935.3,5.16715]
[1741976585178,5.749,1935.5,1935.2,5.16733]
[1741976585410,5.749,1935.5,1935.2,5.16725]
[1741976585608,5.749,1935.5,1935.3,5.16711]
[1741976585782,8.099,1935.5,1935.4,5.16689]
[1741976585982,3.0,1935.5,1935.4,5.16689]
[1741976586607,3.0,1935.5,1935.3,5.16705]
[1741976587712,3.0,1935.5,1935.3,10.33409]
[1741976587914,3.0,1935.5,1935.4,5.16689]
[1741976588211,5.1,1935.9,1935.6,5.16613]
[1741976588630,5.81622,1935.7,1935.3,5.97292]
[1741976588784,10.98246,1935.7,1935.3,5.16702]
[1741976589412,5.81622,1935.7,1935.3,5.16702]
[1741976589608,7.214426,1935.7,1935.3,5.16701]
[1741976589912,7.214426,1935.7,1935.4,5.16687]
[1741976590100,12.380686,1935.7,1935.3,5.16701]
[1741976590299,12.380696,1935.7,1935.3,5.16701]
[1741976590489,7.214426,1935.7,1935.4,5.16685]
[1741976590688,2.048206,1935.7,1935.4,5.16685]
[1741976591090,0.65,1935.7,1935.4,5.16672]
[1741976591615,0.65,1935.7,1935.5,5.16661]
[1741976591928,0.65,1935.7,1935.4,5.16672]
[1741976592811,0.65,1935.7,1935.4,10.33342]
[1741976593017,0.65,1935.7,1935.4,5.1667]
[1741976593318,5.81633,1935.7,1935.3,5.16696]
[1741976593493,11.864253,1935.7,1935.3,5.16695]
[1741976593839,6.697893,1935.7,1935.3,5.16695]
[1741976594129,6.697893,1935.7,1935.4,5.16688]
[1741976594612,1.531633,1935.7,1935.4,10.33365]
[1741976594928,8.16586,1935.8,1935.4,5.16677]
[1741976595288,5.16609,1935.7,1935.4,5.16677]
[1741976596289,5.16609,1935.7,1935.4,5.16681]
[1741976596930,10.33236,1935.7,1935.3,10.33412]
[1741976597131,5.16609,1935.7,1935.4,5.1668]
[1741976597929,13.33183,1935.8,1935.5,5.16659]
[1741976598134,10.55379306,1935.8,1935.5,5.16659]
[1741976598341,15.71978306,1935.8,1935.4,10.33358]
[1741976598640,15.71978306,1935.8,1935.4,5.16678]
[1741976599142,5.16613,1935.7,1935.4,5.16678]
[1741976599340,5.16639,1935.6,1935.3,5.16712]
[1741976599941,3.0,1935.5,1935.2,5.16729]
[1741976600435,3.0,1935.5,1935.2,10.33457]
[1741976601155,5.16724,1935.3,1934.9,5.16822]
[1741976601444,0.65,1935.2,1934.9,5.16822]
[1741976601800,5.81742,1935.2,1934.9,5.16822]
[1741976602417,8.40535824,1935.1,1934.7,5.16866]
[1741976602611,8.40535824,1935.1,1934.7,5.16859]
[1741976602809,13.57330824,1935.1,1934.7,5.16859]
[1741976603137,5.16789,1935.1,1934.7,5.16859]
[1741976603352,10.33577,1935.1,1934.7,5.16859]
[1741976603652,6.915926,1935.2,1934.8,10.3367]
[1741976603816,6.915926,1935.2,1934.8,10.33671]
[1741976604015,3.55,1935.3,1935.0,5.1678]
[1741976604245,3.55,1935.3,1935.0,11.14639]
[1741976604415,3.55,1935.3,1935.0,5.97859]
[1741976604611,3.65,1935.4,1935.1,5.16759]
[1741976604845,3.0,1935.5,1935.2,5.16725]
[1741976605147,9.6616932,1935.5,1935.2,5.16725]
[1741976605449,0.55,1935.1,1934.7,5.16853]
[1741976605620,0.55,1935.1,1934.8,5.16846]
[1741976605621,5.71772,1935.1,1934.8,5.16846]
[1741976606145,5.71772,1935.1,1934.7,5.16859]
[1741976606348,12.484127,1935.1,1934.7,5.16859]
[1741976606646,7.316237,1935.1,1934.7,10.33719]
[1741976606816,7.316237,1935.1,1934.8,5.16847]
[1741976607212,2.148517,1935.1,1934.8,5.16847]
[1741976607420,5.1,1935.2,1935.0,5.16772]
[1741976607618,5.81702,1935.4,1935.0,5.16772]
[1741976608127,10.9841,1935.4,1935.0,5.16772]
[1741976608950,5.81702,1935.4,1935.1,5.16761]
[1741976609647,9.5949632,1935.5,1934.9,0.7946]
[1741976609814,8.16674,1935.5,1935.1,5.16758]
[1741976610015,3.0,1935.5,1934.6,5.16889]
[1741976610220,1.2,1934.9,1934.5,5.16912]
[1741976610428,3.0,1934.8,1934.5,5.16912]
[1741976610638,3.0,1934.8,1934.7,5.16876]
[1741976610846,3.0,1934.9,1934.7,5.16876]
[1741976611122,5.1,1935.0,1934.9,5.16822]
[1741976611322,5.1,1935.0,1934.9,5.96282]
[1741976611323,3.0,1935.0,1934.9,5.96282]
[1741976611563,5.1,1935.4,1935.2,5.16727]
[1741976611728,3.0,1935.3,1935.1,5.16768]
[1741976611928,3.0,1935.3,1935.1,10.33522]
[1741976612126,3.0,1935.3,1935.2,5.16742]
[1741976612357,3.0,1935.3,1935.1,5.16754]
[1741976612862,5.1,1935.4,1935.2,5.16742]
[1741976613429,5.1,1935.4,1935.1,5.684284]
[1741976613631,5.1,1935.4,1935.2,5.16737]
[1741976613866,5.75,1935.9,1935.4,5.94188]
[1741976614054,5.16592,1935.8,1935.4,5.94184]
[1741976614239,5.16592,1935.8,1935.5,5.1666]
[1741976614557,10.91576,1935.9,1935.5,5.16652]
[1741976614854,22.193,1936.0,1935.6,5.16632]
[1741976615054,3.0,1935.9,1935.6,5.16617]
[1741976617964,8.16557,1935.9,1935.5,5.16659]
[1741976618164,5.16642,1935.6,1935.3,5.16701]
[1741976618374,3.0,1935.6,1935.2,5.16717]
[1741976618556,3.0,1935.6,1935.3,5.16704]
[1741976619068,3.0,1935.6,1935.3,10.33398]
[1741976620282,3.0,1935.6,1935.3,5.16694]
[1741976620482,3.0,1935.6,1935.3,10.33397]
[1741976620881,3.0,1935.6,1935.4,5.16688]
[1741976621882,3.0,1935.6,1935.3,5.16708]
[1741976622081,3.0,1935.6,1935.3,10.33404]
[1741976622284,0.55,1935.8,1935.4,5.16689]
[1741976622653,10.882,1935.8,1935.4,5.16689]
[1741976623053,15.981,1935.8,1935.4,5.16689]
[1741976623483,5.1661,1935.7,1935.4,5.16689]
[1741976624072,8.16637,1935.6,1935.3,5.16712]
[1741976625382,1.2,1935.5,1935.1,5.1676]
[1741976625552,11.5335,1935.5,1935.1,5.1676]
[1741976627285,8.81832,1934.9,1934.5,5.16917]
[1741976627489,8.81832,1934.9,1934.6,5.16893]
[1741976627650,3.65,1934.9,1934.6,5.16888]
[1741976628254,8.81828,1934.9,1934.6,5.16888]
[1741976628774,5.16851,1934.8,1934.4,5.16946]
[1741976628977,5.16851,1934.8,1934.3,5.16976]
[1741976628978,8.16886,1934.7,1934.3,5.16976]
[1741976629289,8.16886,1934.7,1934.3,10.33949]
[1741976629456,8.16886,1934.7,1934.4,5.16951]
[1741976629658,8.16886,1934.7,1934.3,5.16973]
[1741976629855,10.91914,1934.6,1934.2,5.17007]
[1741976630053,8.16992,1934.3,1934.0,0.1153881]
[1741976630477,0.65,1934.2,1934.0,0.1153881]
[1741976630664,12.22741217,1934.1,1934.0,0.1153881]
[1741976631467,12.87741217,1934.1,1934.0,0.1153881]
[1741976631669,14.28947817,1934.1,1934.0,0.1153881]
[1741976633410,3.65,1934.0,1933.1,0.01]
[1741976633611,12.22982217,1933.2,1933.1,0.01]
[1741976633921,17.36082217,1933.2,1933.1,0.01]
[1741976634125,18.95892717,1933.2,1933.1,0.01]
[1741976634320,13.78615717,1933.2,1933.1,0.01]
[1741976634478,8.131,1933.2,1933.1,0.01]
[1741976635405,8.131,1933.2,1933.1,5.18303]
[1741976635823,3.0,1933.4,1933.3,5.1725]
[1741976636375,5.133,1933.7,1933.5,5.17173]
[1741976636688,5.133,1933.7,1933.5,10.34356]
[1741976636882,5.133,1933.7,1933.5,5.17173]
[1741976637099,5.133,1933.7,1933.5,10.34358]
[1741976637293,5.133,1933.7,1933.5,5.17173]
[1741976637894,5.133,1933.7,1933.5,10.3435]
[1741976638094,5.133,1933.7,1933.4,5.17221]
[1741976638293,5.133,1933.7,1933.5,5.17187]
[1741976638499,0.5346,1934.0,1933.6,5.1717]
[1741976638710,5.6646,1934.0,1933.7,5.17131]
[1741976638883,3.0,1933.9,1933.7,5.17131]
[1741976639212,3.0,1933.9,1933.7,10.3426]
[1741976639413,3.0,1933.9,1933.8,5.17116]
[1741976641222,5.13,1934.0,1933.9,5.17089]
[1741976641428,8.13,1934.0,1933.9,5.17089]
[1741976641592,5.125,1934.2,1934.0,5.17059]
[1741976641808,7.49875841,1934.2,1934.0,5.17059]
[1741976642119,6.557516,1934.7,1934.2,5.16985]
[1741976642120,1.03157272,1934.5,1934.2,5.16985]
[1741976642301,5.16931,1934.5,1933.8,5.17114]
[1741976642507,0.55,1934.4,1933.6,0.8007]
[1741976642843,3.0,1934.1,1933.9,5.17085]
[1741976643135,3.0,1934.1,1933.9,5.17069]
[1741976643635,3.0,1934.3,1933.8,5.17103]
[1741976643808,8.16993,1934.3,1933.9,5.1707]
[1741976644133,8.16993,1934.3,1933.9,10.34146]
[1741976644294,12.07962322,1934.3,1933.9,5.1707]
[1741976644630,6.90959322,1934.3,1934.0,5.1706]
[1741976644805,4.73966322,1934.3,1934.1,5.17023]
[1741976644993,3.0,1934.3,1934.1,5.17023]
[1741976645186,3.0,1934.3,1934.0,5.17054]
[1741976645444,3.0,1934.3,1933.6,0.8007]
[1741976645445,8.17004,1934.3,1933.9,5.1707]
[1741976645607,8.17004,1934.3,1933.9,10.34135]
[1741976645809,13.29904,1934.3,1933.9,10.34135]
[1741976646035,13.29904,1934.3,1934.0,5.17062]
[1741976646220,15.03464922,1934.3,1934.0,5.17062]
[1741976646530,9.22723217,1934.2,1933.7,5.17129]
[1741976646731,3.0,1934.1,1933.8,10.34201]
[1741976646927,3.0,1934.1,1933.9,5.17085]
[1741976647306,4.27618322,1934.1,1933.7,5.1714]
[1741976647749,4.27618322,1934.1,1933.7,5.17129]
[1741976648034,4.27618322,1934.1,1933.8,5.17112]
[1741976648210,3.0,1934.1,1933.8,5.17112]
[1741976648421,3.0,1934.1,1933.9,5.17078]
[1741976648735,3.0,1934.1,1933.9,10.34151]
[1741976648936,3.0,1934.1,1933.8,5.17116]
[1741976649139,3.0,1934.1,1933.8,5.171]
[1741976650138,9.09585,1934.1,1933.8,5.171]
[1741976650742,3.92548,1934.1,1933.8,5.171]
[1741976651339,3.0,1934.1,1933.9,5.17077]
[1741976651748,3.0,1934.1,1934.0,5.17063]